[Event "Titled Tuesday Blitz April 11 Early 2023"]
[White "Sharapov, Evgeny"]
[Black "Coelho, Ramyres Santana"]
[WhiteFideId "14103133"]
[BlackFideId "2120690"]
[WhiteElo "2367"]
[BlackElo "1888"]
[Result "1-0"]
[Round "05"]
[TimeControl "180+2"]
[Date "2023.04.11"]
[WhiteClock "0:00:15"]
[BlackClock "0:00:04"]

1. e4 {[%clk 0:02:59]}  c5 {[%clk 0:02:59]} 2. Nf3 {[%clk 0:02:59]}  d6 {[%clk 0:02:59]} 3. d4 {[%clk 0:02:59]}  cxd4 {[%clk 0:02:49]} 4. Nxd4 {[%clk 0:02:58]}  Nf6 {[%clk 0:02:49]} 5. Nc3 {[%clk 0:02:58]}  a6 {[%clk 0:02:49]} 6. g3 {[%clk 0:02:58]}  e6 {[%clk 0:02:49]} 7. Bg2 {[%clk 0:02:57]}  Be7 {[%clk 0:02:49]} 8. a4 {[%clk 0:02:57]}  O-O {[%clk 0:02:49]} 9. O-O {[%clk 0:02:56]}  Qc7 {[%clk 0:02:49]} 10. a5 {[%clk 0:02:56]}  Nc6 {[%clk 0:02:48]} 11. Nb3 {[%clk 0:02:56]}  b5 {[%clk 0:02:43]} 12. axb6 {[%clk 0:02:55]}  Qxb6 {[%clk 0:02:43]} 13. Kh1 {[%clk 0:02:55]}  Bb7 {[%clk 0:02:40]} 14. f4 {[%clk 0:02:55]}  Rfd8 {[%clk 0:02:31]} 15. Qe2 {[%clk 0:02:54]}  Rdc8 {[%clk 0:02:00]} 16. Be3 {[%clk 0:02:53]}  Qc7 {[%clk 0:01:58]} 17. g4 {[%clk 0:02:51]}  Nd7 {[%clk 0:01:38]} 18. g5 {[%clk 0:02:50]}  Nb4 {[%clk 0:01:35]} 19. Ra4 {[%clk 0:02:36]}  d5 {[%clk 0:01:24]} 20. e5 {[%clk 0:02:26]}  Qc4 {[%clk 0:01:17]} 21. Qf2 {[%clk 0:02:11]}  Qc7 {[%clk 0:01:06]} 22. Bd4 {[%clk 0:01:45]}  g6 {[%clk 0:01:04]} 23. Rfa1 {[%clk 0:01:38]}  Bc6 {[%clk 0:01:01]} 24. Ra5 {[%clk 0:01:31]}  Rcb8 {[%clk 0:00:48]} 25. h4 {[%clk 0:01:25]}  Qb7 {[%clk 0:00:41]} 26. Nc1 {[%clk 0:01:06]}  Nf8 {[%clk 0:00:36]} 27. h5 {[%clk 0:00:55]}  Be8 {[%clk 0:00:36]} 28. h6 {[%clk 0:00:53]}  Nc6 {[%clk 0:00:35]} 29. R5a2 {[%clk 0:00:50]}  Nxd4 {[%clk 0:00:36]} 30. Qxd4 {[%clk 0:00:49]}  Rc8 {[%clk 0:00:35]} 31. Nb3 {[%clk 0:00:46]}  Rc4 {[%clk 0:00:32]} 32. Qf2 {[%clk 0:00:40]}  Qb4 {[%clk 0:00:31]} 33. Rf1 {[%clk 0:00:28]}  a5 {[%clk 0:00:31]} 34. Nc1 {[%clk 0:00:26]}  Bc5 {[%clk 0:00:27]} 35. Qd2 {[%clk 0:00:24]}  Bc6 {[%clk 0:00:22]} 36. Nd3 {[%clk 0:00:24]}  Qb6 {[%clk 0:00:19]} 37. Nxc5 {[%clk 0:00:24]}  Qxc5 {[%clk 0:00:20]} 38. Ne2 {[%clk 0:00:21]}  Rxc2 {[%clk 0:00:16]} 39. Rc1 {[%clk 0:00:21]}  Rxc1+ {[%clk 0:00:05]} 40. Qxc1 {[%clk 0:00:21]}  Qxc1+ {[%clk 0:00:05]} 41. Nxc1 {[%clk 0:00:21]}  Nd7 {[%clk 0:00:06]} 42. Nb3 {[%clk 0:00:20]}  a4 {[%clk 0:00:05]} 43. Nd4 {[%clk 0:00:20]}  Bb7 {[%clk 0:00:05]} 44. Ra1 {[%clk 0:00:19]}  Nb6 {[%clk 0:00:05]} 45. Rc1 {[%clk 0:00:18]}  Nc4 {[%clk 0:00:05]} 46. Bf1 {[%clk 0:00:17]}  Rc8 {[%clk 0:00:04]} 47. b3 {[%clk 0:00:14]}  axb3 {[%clk 0:00:04]} 48. Nxb3 {[%clk 0:00:15]}  d4+ {[%clk 0:00:03]} 49. Kg1 {[%clk 0:00:14]}  Ne3 {[%clk 0:00:03]} 50. Rxc8+ {[%clk 0:00:13]}  Bxc8 {[%clk 0:00:04]} 51. Nxd4 {[%clk 0:00:13]}  Nxf1 {[%clk 0:00:05]} 52. Kxf1 {[%clk 0:00:13]}  Kf8 {[%clk 0:00:05]} 53. Ke2 {[%clk 0:00:14]}  Bb7 {[%clk 0:00:06]} 54. Kd2 {[%clk 0:00:14]}  Bd5 {[%clk 0:00:05]} 55. Kc3 {[%clk 0:00:14]}  Ke7 {[%clk 0:00:05]} 56. Kb4 {[%clk 0:00:15]}  Be4 {[%clk 0:00:05]} 57. Kc5 {[%clk 0:00:15]}  Bb1 {[%clk 0:00:05]} 58. Kc6 {[%clk 0:00:15]}  Be4+ {[%clk 0:00:05]} 59. Kc7 {[%clk 0:00:16]}  Bb1 {[%clk 0:00:06]} 60. Nc6+ {[%clk 0:00:15]}  Kf8 {[%clk 0:00:05]} 61. Kd8 {[%clk 0:00:15]}  Be4 {[%clk 0:00:05]} 62. Nb8 {[%clk 0:00:15]}  Bb7 {[%clk 0:00:03]} 63. Nd7+ {[%clk 0:00:15]}  Kg8 {[%clk 0:00:04]} 64. Nf6+ {[%clk 0:00:15]}  Kf8 {[%clk 0:00:01]} 65. Nxh7+ {[%clk 0:00:15]}  Kg8 {[%clk 0:00:02]} 66. Nf6+ {[%clk 0:00:15]}  Kh8 {[%clk 0:00:02]} 67. Ke7 {[%clk 0:00:15]}  Be4 {[%clk 0:00:02]} 68. Kxf7 {[%clk 0:00:15]}  Bf5 {[%clk 0:00:02]} 69. Ke7 {[%clk 0:00:15]}  Bg4 {[%clk 0:00:02]} 70. Ne8 {[%clk 0:00:15]}  Bf5 {[%clk 0:00:03]} 71. Nc7 {[%clk 0:00:15]}  Bg4 {[%clk 0:00:03]} 72. Nxe6 {[%clk 0:00:15]}  Bf5 {[%clk 0:00:04]} 73. Nc7 {[%clk 0:00:15]}  Bc8 {[%clk 0:00:04]} 74. Kf7 {[%clk 0:00:15]}  Kh7 {[%clk 0:00:04]} 75. e6 {[%clk 0:00:15]}  Bb7 {[%clk 0:00:04]} 76. e7 {[%clk 0:00:15]}  Bc6 {[%clk 0:00:04]} 77. e8=Q {[%clk 0:00:16]}  Bd5+ {[%clk 0:00:05]} 78. Kf8 {[%clk 0:00:16]}  Bg8 {[%clk 0:00:04]} 79. Qe7+ {[%clk 0:00:15]}  Kh8 {[%clk 0:00:04]} 80. Qg7# {[%clk 0:00:15]} 1-0


[Site "https://www.chess.com"]

[Event "Titled Tuesday Blitz April 11 Early 2023"]
[White "Levitan, Caleb Levi"]
[Black "Ljukin, Sergei"]
[WhiteFideId "14332620"]
[BlackFideId "14102200"]
[WhiteElo "1963"]
[BlackElo "2312"]
[Result "0-1"]
[Round "05"]
[TimeControl "180+2"]
[Date "2023.04.11"]
[WhiteClock "0:00:01"]
[BlackClock "0:00:03"]

1. e4 {[%clk 0:02:59]}  e6 {[%clk 0:03:00]} 2. d4 {[%clk 0:02:58]}  d5 {[%clk 0:03:00]} 3. Nc3 {[%clk 0:02:58]}  Bb4 {[%clk 0:03:00]} 4. e5 {[%clk 0:02:57]}  Ne7 {[%clk 0:03:00]} 5. Bd2 {[%clk 0:02:52]}  b6 {[%clk 0:03:00]} 6. a3 {[%clk 0:02:52]}  Bxc3 {[%clk 0:03:00]} 7. Bxc3 {[%clk 0:02:52]}  c5 {[%clk 0:02:59]} 8. f4 {[%clk 0:02:52]}  Nf5 {[%clk 0:02:55]} 9. Nf3 {[%clk 0:02:50]}  Ne3 {[%clk 0:02:54]} 10. Bb5+ {[%clk 0:02:36]}  Bd7 {[%clk 0:02:36]} 11. Bxd7+ {[%clk 0:02:32]}  Nxd7 {[%clk 0:02:34]} 12. Qe2 {[%clk 0:02:31]}  Nf5 {[%clk 0:02:33]} 13. O-O {[%clk 0:02:27]}  O-O {[%clk 0:02:31]} 14. Qf2 {[%clk 0:02:17]}  Rc8 {[%clk 0:02:29]} 15. g4 {[%clk 0:01:52]}  Nxd4 {[%clk 0:02:28]} 16. Bxd4 {[%clk 0:01:46]}  cxd4 {[%clk 0:02:28]} 17. Nxd4 {[%clk 0:01:46]}  Nc5 {[%clk 0:02:24]} 18. f5 {[%clk 0:01:43]}  f6 {[%clk 0:01:30]} 19. Nxe6 {[%clk 0:01:06]}  Nxe6 {[%clk 0:01:30]} 20. fxe6 {[%clk 0:01:07]}  fxe5 {[%clk 0:01:09]} 21. Qe2 {[%clk 0:00:57]}  Qd6 {[%clk 0:01:07]} 22. Rf5 {[%clk 0:00:52]}  e4 {[%clk 0:00:48]} 23. Rd1 {[%clk 0:00:39]}  Qxe6 {[%clk 0:00:32]} 24. Rdxd5 {[%clk 0:00:24]}  Rxf5 {[%clk 0:00:31]} 25. Rxf5 {[%clk 0:00:23]}  e3 {[%clk 0:00:20]} 26. c3 {[%clk 0:00:18]}  Rd8 {[%clk 0:00:18]} 27. Rf1 {[%clk 0:00:11]}  Rd2 {[%clk 0:00:17]} 28. Qf3 {[%clk 0:00:11]}  h6 {[%clk 0:00:16]} 29. Re1 {[%clk 0:00:08]}  e2 {[%clk 0:00:10]} 30. Qf4 {[%clk 0:00:08]}  Rxb2 {[%clk 0:00:09]} 31. Kg2 {[%clk 0:00:06]}  Rc2 {[%clk 0:00:08]} 32. Qf3 {[%clk 0:00:05]}  Qe5 {[%clk 0:00:07]} 33. h3 {[%clk 0:00:03]}  Rxc3 {[%clk 0:00:07]} 34. Qxe2 {[%clk 0:00:01]}  Qg3+ {[%clk 0:00:06]} 35. Kh1 {[%clk 0:00:02]}  Qxh3+ {[%clk 0:00:06]} 36. Qh2 {[%clk 0:00:02]}  Qf3+ {[%clk 0:00:06]} 37. Qg2 {[%clk 0:00:02]}  Qxg2+ {[%clk 0:00:05]} 38. Kxg2 {[%clk 0:00:03]}  Rxa3 {[%clk 0:00:06]} 39. Re7 {[%clk 0:00:03]}  Kh7 {[%clk 0:00:07]} 40. Rb7 {[%clk 0:00:03]}  Kg6 {[%clk 0:00:07]} 41. Rd7 {[%clk 0:00:03]}  b5 {[%clk 0:00:07]} 42. Rb7 {[%clk 0:00:02]}  a6 {[%clk 0:00:07]} 43. Kf2 {[%clk 0:00:02]}  Ra4 {[%clk 0:00:06]} 44. Kf3 {[%clk 0:00:02]}  Kf6 {[%clk 0:00:05]} 45. Kg3 {[%clk 0:00:02]}  g5 {[%clk 0:00:04]} 46. Kf3 {[%clk 0:00:02]}  Rf4+ {[%clk 0:00:03]} 47. Kg3 {[%clk 0:00:02]}  Ra4 {[%clk 0:00:03]} 48. Rb6+ {[%clk 0:00:02]}  Ke5 {[%clk 0:00:03]} 49. Rxh6 {[%clk 0:00:02]}  Ra3+ {[%clk 0:00:04]} 50. Kg2 {[%clk 0:00:02]}  Kf4 {[%clk 0:00:04]} 51. Rc6 {[%clk 0:00:02]}  Kxg4 {[%clk 0:00:05]} 52. Rd6 {[%clk 0:00:02]}  Ra2+ {[%clk 0:00:05]} 53. Kf1 {[%clk 0:00:02]}  Kf4 {[%clk 0:00:04]} 54. Rd4+ {[%clk 0:00:01]}  Kg3 {[%clk 0:00:05]} 55. Rd3+ {[%clk 0:00:01]}  Kh4 {[%clk 0:00:05]} 56. Rd4+ {[%clk 0:00:02]}  g4 {[%clk 0:00:06]} 57. Kg1 {[%clk 0:00:02]}  Kh3 {[%clk 0:00:05]} 58. Rd8 {[%clk 0:00:01]}  b4 {[%clk 0:00:05]} 59. Rb8 {[%clk 0:00:01]}  a5 {[%clk 0:00:05]} 60. Rd8 {[%clk 0:00:01]}  b3 {[%clk 0:00:04]} 61. Rd3+ {[%clk 0:00:01]}  g3 {[%clk 0:00:04]} 62. Rd1 {[%clk 0:00:01]}  b2 {[%clk 0:00:04]} 63. Kh1 {[%clk 0:00:01]}  Ra1 {[%clk 0:00:03]} 0-1


[Site "https://www.chess.com"]

[Event "Titled Tuesday Blitz April 11 Early 2023"]
[White "Demin, Vladimir"]
[Black "Barwinska, Ewa"]
[WhiteFideId "4167457"]
[BlackFideId "21833761"]
[WhiteElo "2547"]
[BlackElo "1908"]
[Result "1-0"]
[Round "05"]
[TimeControl "180+2"]
[Date "2023.04.11"]
[WhiteClock "0:00:12"]
[BlackClock "0:00:07"]

1. e4 {[%clk 0:02:57]}  c5 {[%clk 0:02:54]} 2. Nf3 {[%clk 0:02:57]}  d6 {[%clk 0:02:51]} 3. d4 {[%clk 0:02:56]}  cxd4 {[%clk 0:02:51]} 4. Qxd4 {[%clk 0:02:56]}  a6 {[%clk 0:02:50]} 5. Be3 {[%clk 0:02:56]}  Nc6 {[%clk 0:02:50]} 6. Qd2 {[%clk 0:02:55]}  Nf6 {[%clk 0:02:50]} 7. Nc3 {[%clk 0:02:56]}  Bg4 {[%clk 0:02:46]} 8. Nd4 {[%clk 0:02:54]}  Nxd4 {[%clk 0:02:36]} 9. Qxd4 {[%clk 0:02:34]}  e5 {[%clk 0:02:36]} 10. Qb6 {[%clk 0:02:34]}  Qxb6 {[%clk 0:02:31]} 11. Bxb6 {[%clk 0:02:34]}  Be7 {[%clk 0:02:31]} 12. f3 {[%clk 0:02:34]}  Be6 {[%clk 0:02:32]} 13. O-O-O {[%clk 0:02:33]}  O-O {[%clk 0:02:16]} 14. g4 {[%clk 0:02:20]}  Rac8 {[%clk 0:02:07]} 15. h4 {[%clk 0:02:11]}  Rc6 {[%clk 0:01:51]} 16. Be3 {[%clk 0:02:10]}  b5 {[%clk 0:01:49]} 17. Bg5 {[%clk 0:02:08]}  Rfc8 {[%clk 0:01:44]} 18. Bd3 {[%clk 0:02:06]}  b4 {[%clk 0:01:20]} 19. Ne2 {[%clk 0:02:04]}  Bxa2 {[%clk 0:01:11]} 20. Kd2 {[%clk 0:02:04]}  Bc4 {[%clk 0:01:10]} 21. Rc1 {[%clk 0:01:56]}  d5 {[%clk 0:01:00]} 22. Ng3 {[%clk 0:01:51]}  dxe4 {[%clk 0:00:56]} 23. Nf5 {[%clk 0:01:35]}  Bd8 {[%clk 0:00:50]} 24. Bxe4 {[%clk 0:01:31]}  Nxe4+ {[%clk 0:00:48]} 25. fxe4 {[%clk 0:01:32]}  Bxg5+ {[%clk 0:00:48]} 26. hxg5 {[%clk 0:01:33]}  Rd8+ {[%clk 0:00:36]} 27. Ke3 {[%clk 0:01:33]}  Rc7 {[%clk 0:00:36]} 28. Rh2 {[%clk 0:01:28]}  Be6 {[%clk 0:00:20]} 29. Rch1 {[%clk 0:01:22]}  h6 {[%clk 0:00:15]} 30. gxh6 {[%clk 0:01:19]}  g6 {[%clk 0:00:15]} 31. h7+ {[%clk 0:01:15]}  Kh8 {[%clk 0:00:15]} 32. Nh6 {[%clk 0:01:15]}  Rdc8 {[%clk 0:00:11]} 33. Rc1 {[%clk 0:01:03]}  a5 {[%clk 0:00:09]} 34. g5 {[%clk 0:01:02]}  a4 {[%clk 0:00:09]} 35. Ng8 {[%clk 0:00:57]}  a3 {[%clk 0:00:09]} 36. bxa3 {[%clk 0:00:57]}  bxa3 {[%clk 0:00:09]} 37. Nf6 {[%clk 0:00:58]}  Rc3+ {[%clk 0:00:09]} 38. Kd2 {[%clk 0:00:57]}  a2 {[%clk 0:00:08]} 39. Rhh1 {[%clk 0:00:56]}  Ra3 {[%clk 0:00:05]} 40. Ra1 {[%clk 0:00:55]}  Rac3 {[%clk 0:00:05]} 41. Rhc1 {[%clk 0:00:54]}  R3c7 {[%clk 0:00:05]} 42. c3 {[%clk 0:00:46]}  Rd8+ {[%clk 0:00:04]} 43. Kc2 {[%clk 0:00:46]}  Rb7 {[%clk 0:00:04]} 44. Nd5 {[%clk 0:00:42]}  Bxd5 {[%clk 0:00:03]} 45. exd5 {[%clk 0:00:42]}  Rxd5 {[%clk 0:00:03]} 46. Rxa2 {[%clk 0:00:43]}  Kxh7 {[%clk 0:00:04]} 47. Rh1+ {[%clk 0:00:42]}  Kg7 {[%clk 0:00:04]} 48. Ra8 {[%clk 0:00:43]}  Rbd7 {[%clk 0:00:05]} 49. Rhh8 {[%clk 0:00:42]}  Rd2+ {[%clk 0:00:05]} 50. Kc1 {[%clk 0:00:39]}  f6 {[%clk 0:00:05]} 51. Rag8+ {[%clk 0:00:36]}  Kf7 {[%clk 0:00:06]} 52. Rf8+ {[%clk 0:00:36]}  Ke6 {[%clk 0:00:07]} 53. Rxf6+ {[%clk 0:00:36]}  Ke7 {[%clk 0:00:08]} 54. Rxg6 {[%clk 0:00:31]}  Rd1+ {[%clk 0:00:07]} 55. Kc2 {[%clk 0:00:31]}  R1d2+ {[%clk 0:00:08]} 56. Kb3 {[%clk 0:00:32]}  Rg2 {[%clk 0:00:09]} 57. Rg7+ {[%clk 0:00:30]}  Kd6 {[%clk 0:00:09]} 58. Rh6+ {[%clk 0:00:28]}  Kc7 {[%clk 0:00:09]} 59. Rgg6 {[%clk 0:00:25]}  Rdd2 {[%clk 0:00:08]} 60. Kc4 {[%clk 0:00:21]}  Rg4+ {[%clk 0:00:07]} 61. Kc5 {[%clk 0:00:22]}  e4 {[%clk 0:00:07]} 62. Rc6+ {[%clk 0:00:19]}  Kb7 {[%clk 0:00:06]} 63. Rh7+ {[%clk 0:00:19]}  Kb8 {[%clk 0:00:07]} 64. Rg6 {[%clk 0:00:19]}  Rd8 {[%clk 0:00:06]} 65. Kb6 {[%clk 0:00:18]}  Rg1 {[%clk 0:00:06]} 66. Re7 {[%clk 0:00:14]}  Rb1+ {[%clk 0:00:06]} 67. Kc6 {[%clk 0:00:12]}  Rc8+ {[%clk 0:00:06]} 68. Kd5 {[%clk 0:00:13]}  Rb5+ {[%clk 0:00:05]} 69. Kd4 {[%clk 0:00:13]}  e3 {[%clk 0:00:05]} 70. Rxe3 {[%clk 0:00:12]}  Rbc5 {[%clk 0:00:05]} 71. Re7 {[%clk 0:00:12]}  Rc4+ {[%clk 0:00:06]} 72. Ke5 {[%clk 0:00:12]}  Rxc3 {[%clk 0:00:06]} 73. Rgg7 {[%clk 0:00:12]}  R3c5+ {[%clk 0:00:07]} 74. Kf6 {[%clk 0:00:12]}  R8c6+ {[%clk 0:00:07]} 75. Kf7 {[%clk 0:00:12]}  Rc7 {[%clk 0:00:08]} 76. Rg8+ {[%clk 0:00:12]}  Kb7 {[%clk 0:00:08]} 77. g6 {[%clk 0:00:11]}  Rxe7+ {[%clk 0:00:08]} 78. Kxe7 {[%clk 0:00:11]}  Rc7+ {[%clk 0:00:06]} 79. Kf6 {[%clk 0:00:11]}  Rc6+ {[%clk 0:00:06]} 80. Kg5 {[%clk 0:00:10]}  Kb6 {[%clk 0:00:05]} 81. Rd8 {[%clk 0:00:10]}  Kc5 {[%clk 0:00:05]} 82. Rd1 {[%clk 0:00:11]}  Ra6 {[%clk 0:00:05]} 83. Kh6 {[%clk 0:00:11]}  Ra8 {[%clk 0:00:06]} 84. g7 {[%clk 0:00:11]}  Ra6+ {[%clk 0:00:06]} 85. Kh7 {[%clk 0:00:12]}  Ra7 {[%clk 0:00:07]} 86. Kh8 {[%clk 0:00:12]} 1-0


[Site "https://www.chess.com"]

[Event "Titled Tuesday Blitz April 11 Early 2023"]
[White "De Souza, Cristiano Gomes"]
[Black "Kokoszczynski, Jan"]
[WhiteFideId "2151758"]
[BlackFideId "1174460"]
[WhiteElo "2068"]
[BlackElo "2139"]
[Result "1-0"]
[Round "05"]
[TimeControl "180+2"]
[Date "2023.04.11"]
[WhiteClock "0:00:29"]
[BlackClock "0:00:07"]

1. d4 {[%clk 0:03:00]}  Nf6 {[%clk 0:02:58]} 2. c4 {[%clk 0:03:00]}  e6 {[%clk 0:02:58]} 3. Nf3 {[%clk 0:03:01]}  d5 {[%clk 0:02:52]} 4. Nc3 {[%clk 0:03:00]}  Bb4 {[%clk 0:02:51]} 5. Bg5 {[%clk 0:02:59]}  h6 {[%clk 0:02:44]} 6. Bxf6 {[%clk 0:02:59]}  Qxf6 {[%clk 0:02:45]} 7. Rc1 {[%clk 0:02:57]}  O-O {[%clk 0:02:41]} 8. e3 {[%clk 0:02:57]}  c5 {[%clk 0:02:34]} 9. dxc5 {[%clk 0:02:54]}  dxc4 {[%clk 0:02:29]} 10. Bxc4 {[%clk 0:02:51]}  Bxc5 {[%clk 0:02:25]} 11. O-O {[%clk 0:02:50]}  Qe7 {[%clk 0:02:19]} 12. Ne4 {[%clk 0:02:47]}  Bb6 {[%clk 0:02:05]} 13. Qd6 {[%clk 0:02:42]}  Qxd6 {[%clk 0:02:02]} 14. Nxd6 {[%clk 0:02:42]}  Nc6 {[%clk 0:02:02]} 15. Bb5 {[%clk 0:02:37]}  Rd8 {[%clk 0:01:59]} 16. Bxc6 {[%clk 0:02:29]}  bxc6 {[%clk 0:01:56]} 17. Rxc6 {[%clk 0:02:24]}  Bd7 {[%clk 0:01:44]} 18. Rcc1 {[%clk 0:02:22]}  Kf8 {[%clk 0:01:26]} 19. Rfd1 {[%clk 0:02:20]}  Ke7 {[%clk 0:01:08]} 20. Ne5 {[%clk 0:02:14]}  Ba4 {[%clk 0:01:06]} 21. b3 {[%clk 0:02:02]}  Rxd6 {[%clk 0:01:01]} 22. Rxd6 {[%clk 0:02:00]}  Kxd6 {[%clk 0:01:02]} 23. Nc4+ {[%clk 0:01:55]}  Ke7 {[%clk 0:00:52]} 24. bxa4 {[%clk 0:01:53]}  Rc8 {[%clk 0:00:48]} 25. Kf1 {[%clk 0:01:51]}  Rc5 {[%clk 0:00:34]} 26. Ke2 {[%clk 0:01:49]}  Bc7 {[%clk 0:00:34]} 27. Rc2 {[%clk 0:01:44]}  h5 {[%clk 0:00:31]} 28. h3 {[%clk 0:01:44]}  Rd5 {[%clk 0:00:30]} 29. Nd2 {[%clk 0:01:39]}  Ba5 {[%clk 0:00:26]} 30. Nb3 {[%clk 0:01:38]}  Bb6 {[%clk 0:00:26]} 31. Rd2 {[%clk 0:01:33]}  Re5 {[%clk 0:00:23]} 32. Nd4 {[%clk 0:01:27]}  Bxd4 {[%clk 0:00:20]} 33. Rxd4 {[%clk 0:01:27]}  Ra5 {[%clk 0:00:20]} 34. Kd3 {[%clk 0:01:26]}  Rc5 {[%clk 0:00:20]} 35. Rc4 {[%clk 0:01:26]}  Rd5+ {[%clk 0:00:21]} 36. Kc3 {[%clk 0:01:26]}  Rd7 {[%clk 0:00:19]} 37. Rd4 {[%clk 0:01:21]}  Rc7+ {[%clk 0:00:18]} 38. Kb3 {[%clk 0:01:21]}  g5 {[%clk 0:00:18]} 39. a5 {[%clk 0:01:20]}  a6 {[%clk 0:00:17]} 40. Rb4 {[%clk 0:01:16]}  f5 {[%clk 0:00:15]} 41. Rb6 {[%clk 0:01:15]}  g4 {[%clk 0:00:15]} 42. hxg4 {[%clk 0:01:13]}  fxg4 {[%clk 0:00:15]} 43. Rxa6 {[%clk 0:01:12]}  h4 {[%clk 0:00:15]} 44. Ra8 {[%clk 0:01:11]}  Rc5 {[%clk 0:00:14]} 45. a6 {[%clk 0:01:10]}  Rh5 {[%clk 0:00:12]} 46. a7 {[%clk 0:01:08]}  h3 {[%clk 0:00:13]} 47. gxh3 {[%clk 0:01:08]}  gxh3 {[%clk 0:00:13]} 48. Rg8 {[%clk 0:01:08]}  h2 {[%clk 0:00:13]} 49. a8=Q {[%clk 0:00:53]}  h1=Q {[%clk 0:00:14]} 50. Rg7+ {[%clk 0:00:48]}  Kf6 {[%clk 0:00:12]} 51. Qxh1 {[%clk 0:00:44]}  Rxh1 {[%clk 0:00:13]} 52. Rc7 {[%clk 0:00:42]}  Re1 {[%clk 0:00:11]} 53. a4 {[%clk 0:00:40]}  Ke5 {[%clk 0:00:11]} 54. Rc2 {[%clk 0:00:38]}  Kd5 {[%clk 0:00:10]} 55. Kb4 {[%clk 0:00:38]}  Rb1+ {[%clk 0:00:09]} 56. Ka5 {[%clk 0:00:38]}  e5 {[%clk 0:00:09]} 57. Ka6 {[%clk 0:00:38]}  Ke4 {[%clk 0:00:08]} 58. a5 {[%clk 0:00:37]}  Kd3 {[%clk 0:00:09]} 59. Rc5 {[%clk 0:00:36]}  e4 {[%clk 0:00:09]} 60. Rb5 {[%clk 0:00:35]}  Rf1 {[%clk 0:00:08]} 61. Rf5 {[%clk 0:00:34]}  Rb1 {[%clk 0:00:08]} 62. Ka7 {[%clk 0:00:33]}  Ke2 {[%clk 0:00:09]} 63. a6 {[%clk 0:00:32]}  Rb4 {[%clk 0:00:06]} 64. Ka8 {[%clk 0:00:31]}  Rb5 {[%clk 0:00:07]} 65. Rxb5 {[%clk 0:00:29]} 1-0


[Site "https://www.chess.com"]

[Event "Titled Tuesday Blitz April 11 Early 2023"]
[White "lolliNOPE"]
[Black "Forgacs, Attila Jr."]
[BlackFideId "773654"]
[WhiteElo "2161"]
[BlackElo "2168"]
[Result "1-0"]
[Round "05"]
[TimeControl "180+2"]
[Date "2023.04.11"]
[WhiteClock "0:00:11"]
[BlackClock "0:00:02"]

1. e4 {[%clk 0:02:56]}  e5 {[%clk 0:03:00]} 2. Nc3 {[%clk 0:02:56]}  Nf6 {[%clk 0:02:57]} 3. f4 {[%clk 0:02:56]}  d5 {[%clk 0:02:57]} 4. fxe5 {[%clk 0:02:57]}  Nxe4 {[%clk 0:02:57]} 5. Nf3 {[%clk 0:02:57]}  Be7 {[%clk 0:02:54]} 6. Qe2 {[%clk 0:02:56]}  Nxc3 {[%clk 0:02:53]} 7. dxc3 {[%clk 0:02:57]}  c5 {[%clk 0:02:53]} 8. Bf4 {[%clk 0:02:57]}  Be6 {[%clk 0:02:53]} 9. O-O-O {[%clk 0:02:54]}  Nc6 {[%clk 0:02:53]} 10. h4 {[%clk 0:02:53]}  Qa5 {[%clk 0:02:50]} 11. Kb1 {[%clk 0:02:51]}  d4 {[%clk 0:02:39]} 12. c4 {[%clk 0:02:51]}  b5 {[%clk 0:02:30]} 13. Nd2 {[%clk 0:02:02]}  h5 {[%clk 0:02:29]} 14. g3 {[%clk 0:01:58]}  O-O {[%clk 0:01:50]} 15. Bh3 {[%clk 0:01:54]}  Bxh3 {[%clk 0:01:07]} 16. Rxh3 {[%clk 0:01:53]}  Rfd8 {[%clk 0:01:06]} 17. cxb5 {[%clk 0:01:41]}  Nb4 {[%clk 0:01:06]} 18. a3 {[%clk 0:01:41]}  d3 {[%clk 0:01:06]} 19. cxd3 {[%clk 0:01:33]}  Nxd3 {[%clk 0:01:07]} 20. Nc4 {[%clk 0:01:10]}  Nxf4 {[%clk 0:01:07]} 21. gxf4 {[%clk 0:01:10]}  Qxb5 {[%clk 0:01:03]} 22. Rc3 {[%clk 0:01:00]}  Rd4 {[%clk 0:00:44]} 23. Rdc1 {[%clk 0:00:40]}  Rb8 {[%clk 0:00:33]} 24. R1c2 {[%clk 0:00:31]}  Rxf4 {[%clk 0:00:30]} 25. e6 {[%clk 0:00:20]}  Bxh4 {[%clk 0:00:16]} 26. exf7+ {[%clk 0:00:20]}  Rxf7 {[%clk 0:00:16]} 27. Qxh5 {[%clk 0:00:20]}  Rf1+ {[%clk 0:00:12]} 28. Ka2 {[%clk 0:00:19]}  Bf6 {[%clk 0:00:12]} 29. Rh3 {[%clk 0:00:18]}  Rf4 {[%clk 0:00:05]} 30. Qd5+ {[%clk 0:00:18]}  Kf8 {[%clk 0:00:05]} 31. Rh8+ {[%clk 0:00:17]}  Ke7 {[%clk 0:00:06]} 32. Qd6+ {[%clk 0:00:17]}  Kf7 {[%clk 0:00:05]} 33. Qd5+ {[%clk 0:00:17]}  Kg6 {[%clk 0:00:06]} 34. Rg2+ {[%clk 0:00:15]}  Bg5 {[%clk 0:00:05]} 35. Qxg5+ {[%clk 0:00:15]}  Kf7 {[%clk 0:00:05]} 36. Qxg7+ {[%clk 0:00:15]}  Ke6 {[%clk 0:00:06]} 37. Re2+ {[%clk 0:00:15]}  Kd5 {[%clk 0:00:06]} 38. Qe5+ {[%clk 0:00:14]}  Kc6 {[%clk 0:00:06]} 39. Rh6+ {[%clk 0:00:13]}  Kb7 {[%clk 0:00:06]} 40. Qd5+ {[%clk 0:00:13]}  Kc8 {[%clk 0:00:03]} 41. Rh8+ {[%clk 0:00:12]}  Kc7 {[%clk 0:00:03]} 42. Re7+ {[%clk 0:00:10]}  Qd7 {[%clk 0:00:02]} 43. Rxd7# {[%clk 0:00:11]} 1-0


[Site "https://www.chess.com"]

[Event "Titled Tuesday Blitz April 11 Early 2023"]
[White "Sailer, Mike"]
[Black "Vaibhav, Suri"]
[WhiteFideId "2012901"]
[BlackFideId "5045185"]
[WhiteElo "2109"]
[BlackElo "2510"]
[Result "0-1"]
[Round "05"]
[TimeControl "180+2"]
[Date "2023.04.11"]
[WhiteClock "0:00:29"]
[BlackClock "0:01:54"]

1. d4 {[%clk 0:02:58]}  d5 {[%clk 0:02:59]} 2. Bg5 {[%clk 0:02:58]}  c6 {[%clk 0:02:58]} 3. e3 {[%clk 0:02:50]}  Qb6 {[%clk 0:02:57]} 4. Qc1 {[%clk 0:02:51]}  h6 {[%clk 0:02:56]} 5. Bh4 {[%clk 0:02:50]}  e5 {[%clk 0:02:56]} 6. Nf3 {[%clk 0:02:41]}  e4 {[%clk 0:02:49]} 7. Nfd2 {[%clk 0:02:41]}  Ne7 {[%clk 0:02:46]} 8. c4 {[%clk 0:02:31]}  Nf5 {[%clk 0:02:39]} 9. Bg3 {[%clk 0:02:29]}  Nxg3 {[%clk 0:02:34]} 10. hxg3 {[%clk 0:02:29]}  Be6 {[%clk 0:02:34]} 11. cxd5 {[%clk 0:02:23]}  cxd5 {[%clk 0:02:35]} 12. Nc3 {[%clk 0:02:20]}  Nc6 {[%clk 0:02:34]} 13. Bb5 {[%clk 0:01:59]}  Rc8 {[%clk 0:02:30]} 14. O-O {[%clk 0:01:58]}  Bd6 {[%clk 0:02:26]} 15. a4 {[%clk 0:01:48]}  a6 {[%clk 0:02:22]} 16. a5 {[%clk 0:01:48]}  Qd8 {[%clk 0:02:21]} 17. Bxc6+ {[%clk 0:01:42]}  Rxc6 {[%clk 0:02:20]} 18. Qd1 {[%clk 0:01:31]}  h5 {[%clk 0:02:20]} 19. Nb3 {[%clk 0:01:24]}  Bg4 {[%clk 0:01:55]} 20. f3 {[%clk 0:01:10]}  Bxg3 {[%clk 0:01:54]} 21. fxg4 {[%clk 0:00:53]}  Qh4 {[%clk 0:01:54]} 22. Rf5 {[%clk 0:00:46]}  hxg4 {[%clk 0:01:54]} 23. Re5+ {[%clk 0:00:29]}  Kf8 {[%clk 0:01:54]} 0-1


[Site "https://www.chess.com"]